Workbook

Sheet Gesamtrangliste
Q1: Breaks gesamt: | W1: =Y1+AA1+AC1+AE1+AG1+AI1+AK1+AM1+AO1+AQ1+AS1+AU1+AW1+AY1+BA1 -> 244 | X1: Breaks 30 + | Y1: 23 | Z1: Breaks 30+ | AA1: 13 | AB1: Breaks 30 + | AC1: 27 | AD1: Breaks 30 + | AE1: 19 | AF1: Breaks 30 + | AG1: 44 | AH1: Breaks 30 + | AI1: 6 | AJ1: Breaks 30 + | AK1: 20 | AL1: Breaks 30 + | AM1: 30 | AN1: Breaks 30 + | AO1: 16 | AP1: Breaks 30 + | AQ1: 11 | AR1: Breaks 30 + | AS1: 14 | AT1: Breaks 30 + | AU1: 21 | AV1: Breaks 30 + | AX1: Breaks 30 + | AZ1: Breaks 30 + CP
A2: Platz | B2: ↓↑ | C2: Pl.alt | D2: Spielername | E2: Total | F2: -1 | G2: St.-Erg. | H2: HB | I2: T1 | J2: T2 | K2: T3 | L2: T4 | M2: T5 | N2: T6 | O2: T7 | P2: T8 | Q2: T9 | R2: T10 | S2: T11 | T2: T12 | U2: T13 | V2: T14 | W2: CP | X2: Spieler | Y2: T 1 | Z2: Spieler | AA2: T 2 | AB2: Spieler | AC2: T 3 | AD2: Spieler | AE2: T 4 | AF2: Spieler | AG2: T 5 | AH2: Spieler | AI2: T 6 | AJ2: Spieler | AK2: T 7 | AL2: Spieler | AM2: T 8 | AN2: Spieler | AO2: T 9 | AP2: Spieler | AQ2: T10 | AR2: Spieler | AS2: T11 | AT2: Spieler | AU2: T12 | AV2: Spieler | AW2: T13 | AX2: Spieler | AY2: T14 | AZ2: Abschlussturnier
A3: 1 | B3: =IF(C3="","",C3-A3) -> 0 | C3: 1 | D3: Florian Schmidt | E3: =I3+J3+K3+L3+M3+N3+O3+P3+Q3+R3+S3+T3+U3+V3+W3 -> 3425.00446 | F3: =E3-G3 -> 3425.00446 | G3: =INDEX(I3:W3,MATCH(LARGE(I3:W3,COUNTIF(I3:W3,">="&0)),I3:W3,0)) -> 0 | H3: 97 | I3: =SUMIF($X$3:$X$59,$D3,$Y$3:$Y$59) -> 280.0036 | J3: =SUMIF($Z$3:$Z$42,$D3,$AA$3:$AA$42) -> 380 | K3: =SUMIF($AB$3:$AB$42,$D3,$AC$3:$AC$42) -> 250.00021 | L3: =SUMIF($AD$3:$AD$42,$D3,$AE$3:$AE$42) -> 150.00016 | M3: =SUMIF($AF$3:$AF$42,$D3,$AG$3:$AG$42) -> 265 | N3: =SUMIF($AH$3:$AH$42,$D3,$AI$3:$AI$42) -> 150.00016 | O3: =SUMIF($AJ$3:$AJ$42,$D3,$AK$3:$AK$42) -> 345 | P3: =SUMIF($AL$3:$AL$42,$D3,$AM$3:$AM$42) -> 320.00006 | Q3: =SUMIF(AN$3:AN$42,$D3,AO$3:AO$42) -> 205 | R3: =SUMIF(AP$3:AP$42,$D3,AQ$3:AQ$42) -> 290.00011 | S3: =SUMIF(AR$3:AR$42,$D3,AS$3:AS$42) -> 95.00016 | T3: =SUMIF(AT$3:AT$42,$D3,AU$3:AU$42) -> 390 | U3: =SUMIF(AV$3:AV$42,$D3,AW$3:AW$42) -> 305 | V3: =SUMIF(AX$3:AX$42,$D3,AY$3:AY$42) -> 0 | W3: =SUMIF(AZ$3:AZ$42,$D3,BA$3:BA$42) -> 0 | X3: Marco Weber | Y3: 350.004 | Z3: Thomas Krause | AA3: 430 | AB3: Florian Schmidt | AC3: 250.00021 | AD3: Marco Weber | AE3: 350.00006 | AF3: Florian Schmidt | AG3: 265 | AH3: Aaron Bocksberger | AI3: 350.00008 | AJ3: Florian Schmidt | AK3: 345 | AL3: Marco Weber | AM3: 365.00016 | AN3: Moritz Thomas | AO3: 325 | AP3: Paul N. Schmidt | AQ3: 350.00002 | AR3: Thimo Troks | AS3: 310.00017 | AT3: Ammar Al Ani | AU3: 445 | AV3: Paul N. Schmidt | AW3: 325 | AZ3: keine Punkte
A4: 2 | B4: 0 | C4: 2 | D4: Marco Weber | E4: 2090.00449 | F4: 2090.00449 | G4: 0 | H4: 76 | I4: 350.004 | J4: 275 | K4: 95.00016 | L4: 350.00006 | M4: 0 | N4: =SUMIF($AH$3:$AH$42,$D4,$AI$3:$AI$42) -> 0 | O4: 0 | P4: 365.00016 | Q4: 265 | R4: 0 | S4: 165.00011 | T4: =SUMIF(AT$3:AT$42,$D4,AU$3:AU$42) -> 225 | U4: 0 | V4: 0 | W4: 0 | X4: Florian Schmidt | Y4: 280.0036 | Z4: Florian Schmidt | AA4: 380 | AB4: Tino Delling | AC4: 200.00005 | AD4: Ammar Al Ani | AE4: 290.00004 | AF4: Holger Hänel | AG4: 205 | AH4: Stefan Meußler | AI4: 280.00005 | AJ4: Oliver Witzik | AK4: 255 | AL4: Florian Schmidt | AM4: 320.00006 | AN4: Marco Weber | AO4: 265 | AP4: Florian Schmidt | AQ4: 290.00011 | AR4: Moritz Thomas | AS4: 265.00018 | AT4: Florian Schmidt | AU4: 390 | AV4: Florian Schmidt | AW4: 305
A5: 3 | B5: 0 | C5: 3 | D5: David Gärtner | E5: 1710.00395 | F5: 1710.00395 | G5: 0 | H5: 62 | I5: 200.0038 | J5: 330 | K5: 95.00001 | L5: 200.00011 | M5: 125 | N5: 0 | O5: 0 | P5: 165.00001 | Q5: 130 | R5: 150.00001 | S5: 100.00001 | T5: 215 | U5: 0 | V5: 0 | W5: 0 | X5: Oliver Witzik | Y5: 230.0034 | Z5: David Gärtner | AA5: 330 | AB5: Thomas Brünner | AC5: 150.00014 | AD5: David Gärtner | AE5: 200.00011 | AF5: Tino Delling | AG5: 210 | AH5: Andreas Hartung | AI5: 225.00006 | AJ5: Michael Schnabel | AK5: 205 | AL5: Holger Hänel | AM5: 225.00012 | AN5: Florian Schmidt | AO5: 205 | AP5: Aaron Bocksberger | AQ5: 210.00012 | AR5: Rene Scheurer | AS5: 230.00007 | AT5: Rene Scheurer | AU5: 315 | AV5: Marko Straßburger | AW5: 220
A6: 4 | B6: 1 | C6: 5 | D6: Marko Straßburger | E6: 1450.00274 | F6: 1450.00274 | G6: 0 | H6: 63 | I6: 95.0022 | J6: 120 | K6: 120.00012 | L6: 125.00013 | M6: 120 | N6: 0 | O6: 0 | P6: 200.00017 | Q6: 75 | R6: 145.00006 | S6: 40.00006 | T6: 190 | U6: 220 | V6: 0 | W6: 0 | X6: David Gärtner | Y6: 200.0038 | Z6: Marco Weber | AA6: 275 | AB6: Marko Straßburger | AC6: 120.00012 | AD6: Florian Schmidt | AE6: 150.00016 | AF6: Moritz Thomas | AG6: 165 | AH6: Thomas Kraege | AI6: 165.00019 | AJ6: Thomas Fritz | AK6: 170 | AL6: Marko Straßburger | AM6: 200.00017 | AN6: Till Fritzsche | AO6: 165 | AP6: Ayhan Ekiz | AQ6: 210.0001 | AR6: Paul N. Schmidt | AS6: 175.0001 | AT6: Paul N. Schmidt | AU6: 265 | AV6: Aaron Bocksberger | AW6: 185
A7: 5 | B7: -1 | C7: 4 | D7: Andreas Hartung | E7: 1285.0041 | F7: 1285.0041 | G7: 0 | H7: 45 | I7: 130.0037 | J7: 210 | K7: 75.00006 | L7: 100.00001 | M7: 70 | N7: 225.00006 | O7: 0 | P7: 155.00011 | Q7: 115 | R7: 90.00016 | S7: 0 | T7: 115 | U7: 0 | V7: 0 | W7: 0 | X7: Andy Swennen | Y7: 145.0025 | Z7: Andreas Hartung | AA7: 210 | AB7: Marco Weber | AC7: 95.00016 | AD7: Holger Hänel | AE7: 150.00012 | AF7: Christian Fröhlich | AG7: 130 | AH7: Matthias Eichel | AI7: 155.00013 | AJ7: Andreas Fandrei | AK7: 145 | AL7: Aaron Bocksberger | AM7: 165.00013 | AN7: David Gärtner | AO7: 130 | AP7: David Gärtner | AQ7: 150.00001 | AR7: Marco Weber | AS7: 165.00011 | AT7: Marco Weber | AU7: 225 | AV7: Ammar Al Ani | AW7: 155
A8: 6 | B8: 1 | C8: 7 | D8: Aaron Bocksberger | E8: 1185.00033 | F8: 1185.00033 | G8: 0 | H8: 58 | I8: 0 | J8: 120 | K8: 0 | L8: 0 | M8: 0 | N8: 350.00008 | O8: 85 | P8: 165.00013 | Q8: 0 | R8: 210.00012 | S8: 0 | T8: 70 | U8: 185 | V8: 0 | W8: 0 | X8: Magnus Suttner | Y8: 140.0035 | Z8: Ammar Al Ani | AA8: 210 | AB8: David Gärtner | AC8: 95.00001 | AD8: Felix Glasow | AE8: 145.00003 | AF8: David Gärtner | AG8: 125 | AH8: Florian Schmidt | AI8: 150.00016 | AJ8: Magnus Suttner | AK8: 130 | AL8: David Gärtner | AM8: 165.00001 | AN8: Holger Hänel | AO8: 120 | AP8: Marko Straßburger | AQ8: 145.00006 | AR8: Holger Hänel | AS8: 160.00014 | AT8: David Gärtner | AU8: 215 | AV8: Magnus Suttner | AW8: 140
A9: 7 | B9: 6 | C9: 13 | D9: Paul N. Schmidt | E9: 1115.00012 | F9: 1115.00012 | G9: 0 | H9: 32 | I9: 0 | J9: 0 | K9: 0 | L9: 0 | M9: 0 | N9: 0 | O9: 0 | P9: 0 | Q9: 0 | R9: 350.00002 | S9: 175.0001 | T9: 265 | U9: 325 | V9: 0 | W9: 0 | X9: Andreas Hartung | Y9: 130.0037 | Z9: Magnus Suttner | AA9: 200 | AB9: Moritz Thomas | AC9: 90.00019 | AD9: Ayhan Ekiz | AE9: 125.00014 | AF9: Marko Straßburger | AG9: 120 | AH9: Frank Brandmeier | AI9: 145.00004 | AJ9: Hermann Kraus | AK9: 125 | AL9: Andreas Hartung | AM9: 155.00011 | AN9: Andreas Hartung | AO9: 115 | AP9: Sven Ohlenroth | AQ9: 135.00007 | AR9: Thomas Brünner | AS9: 160.00005 | AT9: Holger Hänel | AU9: 200 | AV9: Oliver Witzik | AW9: 140
A10: 8 | B10: -2 | C10: 6 | D10: Holger Hänel | E10: 1110.00038 | F10: 1110.00038 | G10: 0 | H10: 55 | I10: 0 | J10: 0 | K10: 50 | L10: 150.00012 | M10: 205 | N10: 0 | O10: 0 | P10: 225.00012 | Q10: 120 | R10: 0 | S10: 160.00014 | T10: 200 | U10: 0 | V10: 0 | W10: 0 | X10: Michael Seidel | Y10: 130.0023 | Z10: Danny Fichtmüller | AA10: 195 | AB10: Sven Ohlenroth | AC10: 90.00008 | AD10: Marko Straßburger | AE10: 125.00013 | AF10: Thomas Krause | AG10: 90 | AH10: Andreas Hollin | AI10: 135.00018 | AJ10: Michael Seidel | AK10: 120 | AL10: Ayhan Ekiz | AM10: 150.00004 | AN10: Sven Ohlenroth | AO10: 110 | AP10: Sylvio Fischer | AQ10: 125.00013 | AR10: Tino Delling | AS10: 150.00002 | AT10: Marko Straßburger | AU10: 190 | AV10: Sylvio Fischer | AW10: 130
A11: 9 | B11: -1 | C11: 8 | D11: Ammar Al Ani | E11: 1100.00004 | F11: 1100.00004 | G11: 0 | H11: 56 | I11: 0 | J11: 210 | K11: 0 | L11: 290.00004 | M11: 0 | N11: 0 | O11: 0 | P11: 0 | Q11: 0 | R11: 0 | S11: 0 | T11: 445 | U11: 155 | V11: 0 | W11: 0 | X11: Sven Ohlenroth | Y11: 105.0021 | Z11: Christopher Jaritz | AA11: 140 | AB11: Andreas Hartung | AC11: 75.00006 | AD11: Ulrich Löffel | AE11: 100.00018 | AF11: Andreas Hartung | AG11: 70 | AH11: Christopher Jaritz | AI11: 110.00003 | AJ11: Slava Nikiforov | AK11: 110 | AL11: Thomas Kraege | AM11: 120.00009 | AN11: Tino Delling | AO11: 75 | AP11: Andreas Hollin | AQ11: 100.00019 | AR11: Sven Ohlenroth | AS11: 100.00015 | AT11: Andy Swennen | AU11: 145 | AV11: Michael Kandler | AW11: 115
A12: 10 | B12: 0 | C12: 10 | D12: Ulrich Löffel | E12: 960.00391 | F12: 960.00391 | G12: 0 | H12: 34 | I12: 85.0031 | J12: 90 | K12: 45.00007 | L12: 100.00018 | M12: 45 | N12: 105.00015 | O12: 0 | P12: 70.00014 | Q12: 70 | R12: 95.00008 | S12: 30.00019 | T12: 120 | U12: 105 | V12: 0 | W12: 0 | X12: Marko Straßburger | Y12: 95.0022 | Z12: Tino Delling | AA12: 130 | AB12: Christoph Richter | AC12: 65.00009 | AD12: Andreas Hartung | AE12: 100.00001 | AF12: Sylvio Fischer | AG12: 60 | AH12: Ulrich Löffel | AI12: 105.00015 | AJ12: Marco Danisch | AK12: 100 | AL12: Jens Künitz | AM12: 90.00007 | AN12: Marko Straßburger | AO12: 75 | AP12: Jens Künitz | AQ12: 100.00018 | AR12: David Gärtner | AS12: 100.00001 | AT12: Tino Delling | AU12: 145 | AV12: Ulrich Löffel | AW12: 105
A13: 11 | B13: 1 | C13: 12 | D13: Sylvio Fischer | E13: 955.00465 | F13: 955.00465 | G13: 0 | I13: 90.0039 | J13: 100 | K13: 30.00023 | L13: 95.00009 | M13: 60 | N13: 105.00011 | O13: 0 | P13: 85.00019 | Q13: 0 | R13: 125.00013 | S13: 0 | T13: 135 | U13: 130 | V13: 0 | W13: 0 | X13: Andreas Hollin | Y13: 95.002 | Z13: Andreas Hollin | AA13: 130 | AB13: Thomas Matka | AC13: 0 | AD13: Sylvio Fischer | AE13: 95.00009 | AF13: Rene Reinhardt | AG13: 45 | AH13: Sylvio Fischer | AI13: 105.00011 | AJ13: Aaron Bocksberger | AK13: 85 | AL13: Sylvio Fischer | AM13: 85.00019 | AN13: Andreas Hollin | AO13: 75 | AP13: Ulrich Löffel | AQ13: 95.00008 | AR13: Florian Schmidt | AS13: 95.00016 | AT13: Thomas Krause | AU13: 145 | AV13: Ronny Rejke | AW13: 100
A14: 12 | B14: -3 | C14: 9 | D14: Tino Delling | E14: 910.00007 | F14: 910.00007 | G14: 0 | H14: 41 | I14: 0 | J14: 130 | K14: 200.00005 | L14: 0 | M14: 210 | N14: 0 | O14: 0 | P14: 0 | Q14: 75 | R14: 0 | S14: 150.00002 | T14: 145 | U14: 0 | V14: 0 | W14: 0 | X14: Sylvio Fischer | Y14: 90.0039 | Z14: Marko Straßburger | AA14: 120 | AB14: Marec Stachly | AC14: 60.00003 | AD14: Jens Künitz | AE14: 85.00007 | AF14: Ulrich Löffel | AG14: 45 | AH14: Jens Künitz | AI14: 95.0001 | AJ14: Jens Künitz | AK14: 80 | AL14: Ronald Ratz | AM14: 85.00003 | AN14: Ulrich Löffel | AO14: 70 | AP14: Andreas Hartung | AQ14: 90.00016 | AR14: Marec Stachly | AS14: 90.00009 | AT14: Sylvio Fischer | AU14: 135 | AV14: Heiko Funk | AW14: 95
A15: 13 | B15: -2 | C15: 11 | D15: Moritz Thomas | E15: 845.00037 | F15: 845.00037 | G15: 0 | H15: 78 | I15: 0 | J15: 0 | K15: 90.00019 | L15: 0 | M15: 165 | N15: 0 | O15: 0 | P15: 0 | Q15: 325 | R15: 0 | S15: 265.00018 | T15: 0 | U15: 0 | V15: 0 | W15: 0 | X15: Ulrich Löffel | Y15: 85.0031 | Z15: Aaron Bocksberger | AA15: 120 | AB15: Holger Hänel | AC15: 50 | AD15: Andreas Hollin | AE15: 85.00005 | AF15: Mario Beetz | AG15: 30 | AH15: Ronald Ratz | AI15: 80.00012 | AJ15: Felix Rotsching | AK15: 50 | AL15: Mario Beetz | AM15: 75.00002 | AN15: Thomas Kraege | AO15: 70 | AP15: Michael Kandler | AQ15: 90.00005 | AR15: Christoph Richter | AS15: 50.00008 | AT15: Andreas Hollin | AU15: 125 | AV15: Sven Ohlenroth | AW15: 95
A16: 14 | B16: 0 | C16: 14 | D16: Andreas Hollin | E16: 785.0026 | F16: 785.0026 | G16: 0 | I16: 95.002 | J16: 130 | K16: 40.00018 | L16: 85.00005 | M16: 0 | N16: 135.00018 | O16: 0 | P16: 0 | Q16: 75 | R16: 100.00019 | S16: 0 | T16: 125 | U16: 0 | V16: 0 | W16: 0 | X16: Jens Künitz | Y16: 85.0027 | Z16: Marco Bertram | AA16: 110 | AB16: Thomas Krause | AC16: 50 | AD16: Heiko Funk | AE16: 75.00017 | AF16: Marec Stachly | AG16: 25 | AH16: Marco Bertram | AI16: 75.00002 | AJ16: Marco Bertram | AK16: 45 | AL16: Ulrich Löffel | AM16: 70.00014 | AN16: Marec Stachly | AO16: 65 | AP16: Ronald Ratz | AQ16: 85.00015 | AR16: Thomas Kraege | AS16: 50.00004 | AT16: Lukas Körnig | AU16: 125 | AV16: Felix Glasow | AW16: 90
A17: 15 | B17: 3 | C17: 18 | D17: Oliver Witzik | E17: 725.0034 | F17: 725.0034 | G17: 0 | H17: 47 | I17: 230.0034 | J17: 60 | K17: 40 | L17: 0 | M17: 0 | N17: 0 | O17: 255 | P17: 0 | Q17: 0 | R17: 0 | S17: 0 | T17: 0 | U17: 140 | V17: 0 | W17: 0 | X17: Felix Glasow | Y17: 75.0033 | Z17: Sylvio Fischer | AA17: 100 | AB17: Rene Scheurer | AC17: 50.00024 | AD17: Peter Stadelmann | AE17: 65.00019 | AH17: Rainer Trupkovic | AI17: 70.00007 | AJ17: Matthias Bauer | AK17: 45 | AL17: Marco Bertram | AM17: 65.00018 | AN17: Mario Beetz | AO17: 60 | AP17: Danny Fichtmüller | AQ17: 85.00003 | AR17: Lukas Körnig | AS17: 40.00012 | AT17: Ulrich Löffel | AU17: 120 | AV17: Matthias Eichel | AW17: 90
A18: 16 | B18: -1 | C18: 15 | D18: Thomas Krause | E18: 715 | F18: 715 | G18: 0 | H18: 42 | I18: 0 | J18: 430 | K18: 50 | L18: 0 | M18: 90 | N18: 0 | O18: 0 | P18: 0 | Q18: 0 | R18: 0 | S18: 0 | T18: 145 | U18: 0 | V18: 0 | W18: 0 | X18: Marco Bertram | Y18: 70.0024 | Z18: Felix Glasow | AA18: 100 | AB18: Ulrich Löffel | AC18: 45.00007 | AD18: Mario Beetz | AE18: 60.00008 | AH18: Mario Beetz | AI18: 65.00017 | AJ18: Andreas Schreier | AK18: 40 | AL18: Ammar AlAni | AM18: 0 | AN18: Jörg Bonitz | AO18: 60 | AP18: Ronny Zimmermann | AQ18: 70.00004 | AR18: Marko Straßburger | AS18: 40.00006 | AT18: Andreas Hartung | AU18: 115 | AV18: Helmut Kuball | AW18: 70
A19: 17 | B19: -1 | C19: 16 | D19: Jens Künitz | E19: 700.00312 | F19: 700.00312 | G19: 0 | H19: 31 | I19: 85.0027 | J19: 100 | K19: 0 | L19: 85.00007 | M19: 0 | N19: 95.0001 | O19: 80 | P19: 90.00007 | Q19: 0 | R19: 100.00018 | S19: 0 | T19: 65 | U19: 0 | V19: 0 | W19: 0 | X19: Ronny Rejke | Y19: 40.003 | Z19: Jens Künitz | AA19: 100 | AB19: Oliver Witzik | AC19: 40 | AD19: Lukas Junker | AE19: 30.00002 | AH19: Francesco Cocco | AI19: 30.00014 | AJ19: Patrick Schicker | AK19: 40 | AP19: Lukas Junker | AQ19: 40.00017 | AR19: Frank Hofmann | AS19: 40.00003 | AT19: Aaron Bocksberger | AU19: 70 | AV19: Ronald Ratz | AW19: 45
A20: 18 | B20: 3 | C20: 21 | D20: Magnus Suttner | E20: 650.00363 | F20: 650.00363 | G20: 0 | H20: 42 | I20: 140.0035 | J20: 200 | K20: 40.00013 | L20: 0 | M20: 0 | N20: 0 | O20: 130 | P20: 0 | Q20: 0 | R20: 0 | S20: 0 | T20: 0 | U20: 140 | V20: 0 | W20: 0 | X20: Mario Beetz | Y20: 40.0029 | Z20: Ulrich Löffel | AA20: 90 | AB20: Carsten Schröter | AC20: 40 | AH20: Mohanad Alobidi | AJ20: André Osowski | AK20: 30 | AP20: Marco Bertram | AQ20: 40.00014 | AR20: Mario Beetz | AS20: 35.00013 | AT20: Jens Künitz | AU20: 65 | AV20: Marco Bertram | AW20: 35
A21: 19 | B21: 1 | C21: 20 | D21: Sven Ohlenroth | E21: 635.0024 | F21: 635.0024 | G21: 0 | H21: 38 | I21: 105.0021 | J21: 0 | K21: 90.00008 | L21: 0 | M21: 0 | N21: 0 | O21: 0 | P21: 0 | Q21: 110 | R21: 135.00007 | S21: 100.00015 | T21: 0 | U21: 95 | V21: 0 | W21: 0 | X21: Dominic Schmid | Y21: 35.0032 | Z21: Mario Beetz | AA21: 80 | AB21: Andreas Hollin | AC21: 40.00018 | AH21: Ammar AlAni | AP21: Mario Beetz | AQ21: 35.00009 | AR21: Ulrich Löffel | AS21: 30.00019 | AT21: Marec Stachly | AU21: 65 | AV21: Frank Brömel | AW21: 30
A22: 20 | B22: -3 | C22: 17 | D22: Rene Scheurer | E22: 595.00031 | F22: 595.00031 | G22: 0 | H22: 34 | I22: 0 | J22: 0 | K22: 50.00024 | L22: 0 | M22: 0 | N22: 0 | O22: 0 | P22: 0 | Q22: 0 | R22: 0 | S22: 230.00007 | T22: 315 | U22: 0 | V22: 0 | W22: 0 | X22: Lukas Junker | Y22: 35.0028 | Z22: Ayhan Ekiz | AA22: 80 | AB22: Magnus Suttner | AC22: 40.00013 | AT22: Ronald Ratz | AU22: 65 | AV22: Jonas Ziemer | AW22: 30
A23: 21 | B23: -2 | C23: 19 | D23: Ayhan Ekiz | E23: 565.00028 | F23: 565.00028 | G23: 0 | H23: 37 | I23: 0 | J23: 80 | K23: 0 | L23: 125.00014 | M23: 0 | N23: 0 | O23: 0 | P23: 150.00004 | Q23: 0 | R23: 210.0001 | S23: 0 | T23: 0 | U23: 0 | V23: 0 | W23: 0 | X23: Frank Brömel | Y23: 30.0026 | Z23: Ronny Zimmermann | AA23: 80 | AB23: Michael Richter | AC23: 40.00004 | AT23: Matthias Eichel | AU23: 60 | AV23: Mario Beetz | AW23: 30
A24: 22 | B24: 0 | C24: 22 | D24: Mario Beetz | E24: 510.00339 | F24: 510.00339 | G24: 0 | I24: 40.0029 | J24: 80 | K24: 0 | L24: 60.00008 | M24: 30 | N24: 65.00017 | O24: 0 | P24: 75.00002 | Q24: 60 | R24: 35.00009 | S24: 35.00013 | T24: 0 | U24: 30 | V24: 0 | W24: 0 | Z24: Lukas Junker | AA24: 80 | AB24: Sylvio Fischer | AC24: 30.00023 | AT24: Thomas Kraege | AU24: 60 | AV24: Peter Stadelmann | AW24: 30
A25: 23 | B25: 2 | C25: 25 | D25: Felix Glasow | E25: 465.00333 | F25: 465.00333 | G25: 0 | I25: 75.0033 | J25: 100 | K25: 0 | L25: 145.00003 | M25: 0 | N25: 0 | O25: 0 | P25: 0 | Q25: 0 | R25: 0 | S25: 0 | T25: 55 | U25: 90 | V25: 0 | W25: 0 | Z25: Frank Brömel | AA25: 70 | AT25: Frank Brömel | AU25: 60
A26: 24 | B26: -1 | C26: 23 | D26: Thomas Kraege | E26: 465.00032 | F26: 465.00032 | G26: 0 | I26: =SUMIF($X$3:$X$59,$D26,$Y$3:$Y$59) -> 0 | J26: =SUMIF($Z$3:$Z$42,$D26,$AA$3:$AA$42) -> 0 | K26: =SUMIF($AB$3:$AB$42,$D26,$AC$3:$AC$42) -> 0 | L26: =SUMIF($AD$3:$AD$42,$D26,$AE$3:$AE$42) -> 0 | M26: =SUMIF($AF$3:$AF$42,$D26,$AG$3:$AG$42) -> 0 | N26: =SUMIF($AH$3:$AH$42,$D26,$AI$3:$AI$42) -> 165.00019 | O26: =SUMIF($AJ$3:$AJ$42,$D26,$AK$3:$AK$42) -> 0 | P26: =SUMIF($AL$3:$AL$42,$D26,$AM$3:$AM$42) -> 120.00009 | Q26: =SUMIF(AN$3:AN$42,$D26,AO$3:AO$42) -> 70 | R26: =SUMIF(AP$3:AP$42,$D26,AQ$3:AQ$42) -> 0 | S26: =SUMIF(AR$3:AR$42,$D26,AS$3:AS$42) -> 50.00004 | T26: =SUMIF(AT$3:AT$42,$D26,AU$3:AU$42) -> 60 | U26: =SUMIF(AV$3:AV$42,$D26,AW$3:AW$42) -> 0 | V26: =SUMIF(AX$3:AX$42,$D26,AY$3:AY$42) -> 0 | W26: =SUMIF(AZ$3:AZ$42,$D26,BA$3:BA$42) -> 0 | Z26: Cihan Ekiz | AA26: 70 | AT26: Jörg Bonitz | AU26: 55
A27: 25 | B27: -1 | C27: 24 | D27: Marco Bertram | E27: 440.00274 | F27: 440.00274 | G27: 0 | I27: =SUMIF($X$3:$X$59,$D27,$Y$3:$Y$59) -> 70.0024 | J27: =SUMIF($Z$3:$Z$42,$D27,$AA$3:$AA$42) -> 110 | K27: =SUMIF($AB$3:$AB$42,$D27,$AC$3:$AC$42) -> 0 | L27: =SUMIF($AD$3:$AD$42,$D27,$AE$3:$AE$42) -> 0 | M27: =SUMIF($AF$3:$AF$42,$D27,$AG$3:$AG$42) -> 0 | N27: =SUMIF($AH$3:$AH$42,$D27,$AI$3:$AI$42) -> 75.00002 | O27: =SUMIF($AJ$3:$AJ$42,$D27,$AK$3:$AK$42) -> 45 | P27: =SUMIF($AL$3:$AL$42,$D27,$AM$3:$AM$42) -> 65.00018 | Q27: =SUMIF(AN$3:AN$42,$D27,AO$3:AO$42) -> 0 | R27: =SUMIF(AP$3:AP$42,$D27,AQ$3:AQ$42) -> 40.00014 | S27: =SUMIF(AR$3:AR$42,$D27,AS$3:AS$42) -> 0 | T27: =SUMIF(AT$3:AT$42,$D27,AU$3:AU$42) -> 0 | U27: =SUMIF(AV$3:AV$42,$D27,AW$3:AW$42) -> 35 | V27: =SUMIF(AX$3:AX$42,$D27,AY$3:AY$42) -> 0 | W27: =SUMIF(AZ$3:AZ$42,$D27,BA$3:BA$42) -> 0 | Z27: Andreas Fandrei | AA27: 70 | AT27: Christoph Richter | AU27: 55
A28: 26 | B28: 0 | C28: 26 | D28: Ronald Ratz | E28: 410.0003 | F28: 410.0003 | G28: 0 | I28: 0 | J28: 50 | K28: 0 | L28: 0 | M28: 0 | N28: 80.00012 | O28: 0 | P28: 85.00003 | Q28: 0 | R28: 85.00015 | S28: 0 | T28: 65 | U28: 45 | V28: 0 | W28: 0 | Z28: Oliver Witzik | AA28: 60 | AT28: Felix Glasow | AU28: 55
A29: 27 | B29: 0 | C29: 27 | D29: Thomas Brünner | E29: 310.00019 | F29: 310.00019 | G29: 0 | H29: 36 | I29: 0 | J29: 0 | K29: 150.00014 | L29: 0 | M29: 0 | N29: 0 | O29: 0 | P29: 0 | Q29: 0 | R29: 0 | S29: 160.00005 | T29: 0 | U29: 0 | V29: 0 | W29: 0 | Z29: Ronald Ratz | AA29: 50 | AT29: Helmut Kuball | AU29: 50
A30: 28 | B30: 0 | C30: 28 | D30: Thimo Troks | E30: 310.00017 | F30: 310.00017 | G30: 0 | H30: 53 | I30: 0 | J30: 0 | K30: 0 | L30: 0 | M30: 0 | N30: 0 | O30: 0 | P30: 0 | Q30: 0 | R30: 0 | S30: 310.00017 | T30: 0 | U30: 0 | V30: 0 | W30: 0
A31: 29 | B31: 6 | C31: 35 | D31: Matthias Eichel | E31: 305.00013 | F31: 305.00013 | G31: 0 | I31: 0 | J31: 0 | K31: 0 | L31: 0 | M31: 0 | N31: 155.00013 | O31: 0 | P31: 0 | Q31: 0 | R31: 0 | S31: 0 | T31: 60 | U31: 90 | V31: 0 | W31: 0
A32: 30 | B32: -1 | C32: 29 | D32: Marec Stachly | E32: 305.00012 | F32: 305.00012 | G32: 0 | I32: 0 | J32: 0 | K32: 60.00003 | L32: 0 | M32: 25 | N32: 0 | O32: 0 | P32: 0 | Q32: 65 | R32: 0 | S32: 90.00009 | T32: 65 | U32: 0 | V32: 0 | W32: 0
A33: 31 | B33: -1 | C33: 30 | D33: Andy Swennen | E33: 290.0025 | F33: 290.0025 | G33: 0 | H33: 36 | I33: 145.0025 | J33: 0 | K33: 0 | L33: 0 | M33: 0 | N33: 0 | O33: 0 | P33: 0 | Q33: 0 | R33: 0 | S33: 0 | T33: 145 | U33: 0 | V33: 0 | W33: 0
A34: 32 | B34: -1 | C34: 31 | D34: Stefan Meußler | E34: 280.00005 | F34: 280.00005 | G34: 0 | I34: 0 | J34: 0 | K34: 0 | L34: 0 | M34: 0 | N34: 280.00005 | O34: 0 | P34: 0 | Q34: 0 | R34: 0 | S34: 0 | T34: 0 | U34: 0 | V34: 0 | W34: 0
A35: 33 | B35: -1 | C35: 32 | D35: Danny Fichtmüller | E35: =I35+J35+K35+L35+M35+N35+O35+P35+Q35+R35+S35+T35+U35+V35+W35 -> 280.00003 | F35: 280.00003 | G35: =INDEX(I35:W35,MATCH(LARGE(I35:W35,COUNTIF(I35:W35,">="&0)),I35:W35,0)) -> 0 | I35: 0 | J35: 195 | K35: 0 | L35: 0 | M35: 0 | N35: 0 | O35: 0 | P35: 0 | Q35: 0 | R35: 85.00003 | S35: 0 | T35: 0 | U35: 0 | V35: 0 | W35: 0
A36: 34 | B36: -1 | C36: 33 | D36: Michael Seidel | E36: 250.0023 | F36: 250.0023 | G36: 0 | H36: 31 | I36: 130.0023 | J36: 0 | K36: 0 | L36: 0 | M36: 0 | N36: 0 | O36: 120 | P36: 0 | Q36: 0 | R36: 0 | S36: 0 | T36: 0 | U36: 0 | V36: 0 | W36: 0
A37: 35 | B37: -1 | C37: 34 | D37: Christopher Jaritz | E37: 250.00003 | F37: 250.00003 | G37: 0 | I37: 0 | J37: 140 | K37: 0 | L37: 0 | M37: 0 | N37: 110.00003 | O37: 0 | P37: 0 | Q37: 0 | R37: 0 | S37: 0 | T37: 0 | U37: 0 | V37: 0 | W37: 0
A38: 36 | B38: 0 | C38: 36 | D38: Andreas Fandrei | E38: 215 | F38: 215 | G38: 0 | I38: 0 | J38: 70 | K38: 0 | L38: 0 | M38: 0 | N38: 0 | O38: 145 | P38: 0 | Q38: 0 | R38: 0 | S38: 0 | T38: 0 | U38: 0 | V38: 0 | W38: 0
A39: 37 | B39: 14 | C39: 51 | D39: Michael Kandler | E39: 205.00005 | G39: 0 | I39: 0 | J39: 0 | K39: 0 | L39: 0 | M39: 0 | N39: 0 | O39: 0 | P39: 0 | Q39: 0 | R39: 90.00005 | S39: 0 | T39: 0 | U39: 115 | V39: 0 | W39: 0
A40: 38 | B40: -1 | C40: 37 | D40: Michael Schnabel | E40: 205 | G40: 0 | H40: 82 | I40: 0 | J40: 0 | K40: 0 | L40: 0 | M40: 0 | N40: 0 | O40: 205 | P40: 0 | Q40: 0 | R40: 0 | S40: 0 | T40: 0 | U40: 0 | V40: 0 | W40: 0
A41: 39 | B41: 4 | C41: 43 | D41: Frank Brömel | E41: 190.0026 | F41: =E41-G41 -> 190.0026 | G41: 0 | I41: 30.0026 | J41: 70 | K41: 0 | L41: 0 | M41: 0 | N41: 0 | O41: 0 | P41: 0 | Q41: 0 | R41: 0 | S41: 0 | T41: 60 | U41: 30 | V41: 0 | W41: 0
A42: 40 | B42: -2 | C42: 38 | D42: Lukas Junker | E42: 185.00299 | F42: =E42-G42 -> 185.00299 | G42: 0 | I42: 35.0028 | J42: 80 | K42: 0 | L42: 30.00002 | M42: 0 | N42: 0 | O42: 0 | P42: 0 | Q42: 0 | R42: 40.00017 | S42: 0 | T42: 0 | U42: 0 | V42: 0 | W42: 0
A43: 41 | B43: -2 | C43: 39 | D43: Christoph Richter | E43: 170.00017 | F43: =E43-G43 -> 170.00017 | G43: 0 | I43: 0 | J43: 0 | K43: 65.00009 | L43: 0 | M43: 0 | N43: 0 | O43: 0 | P43: 0 | Q43: 0 | R43: 0 | S43: 50.00008 | T43: 55 | U43: 0 | V43: 0 | W43: 0
A44: 42 | B44: 10 | C44: 52 | D44: Heiko Funk | E44: 170.00017 | F44: =E44-G44 -> 170.00017 | G44: 0 | I44: 0 | J44: 0 | K44: 0 | L44: 75.00017 | M44: 0 | N44: 0 | O44: 0 | P44: 0 | Q44: 0 | R44: 0 | S44: 0 | T44: 0 | U44: 95 | V44: 0 | W44: 0
A45: 43 | B45: -3 | C45: 40 | D45: Thomas Fritz | E45: 170 | F45: =E45-G45 -> 170 | G45: 0 | I45: =SUMIF($X$3:$X$59,$D45,$Y$3:$Y$59) -> 0 | J45: =SUMIF($Z$3:$Z$42,$D45,$AA$3:$AA$42) -> 0 | K45: =SUMIF($AB$3:$AB$42,$D45,$AC$3:$AC$42) -> 0 | L45: =SUMIF($AD$3:$AD$42,$D45,$AE$3:$AE$42) -> 0 | M45: =SUMIF($AF$3:$AF$42,$D45,$AG$3:$AG$42) -> 0 | N45: =SUMIF($AH$3:$AH$42,$D45,$AI$3:$AI$42) -> 0 | O45: =SUMIF($AJ$3:$AJ$42,$D45,$AK$3:$AK$42) -> 170 | P45: =SUMIF($AL$3:$AL$42,$D45,$AM$3:$AM$42) -> 0 | Q45: =SUMIF(AN$3:AN$42,$D45,AO$3:AO$42) -> 0 | R45: =SUMIF(AP$3:AP$42,$D45,AQ$3:AQ$42) -> 0 | S45: =SUMIF(AR$3:AR$42,$D45,AS$3:AS$42) -> 0 | T45: =SUMIF(AT$3:AT$42,$D45,AU$3:AU$42) -> 0 | U45: =SUMIF(AV$3:AV$42,$D45,AW$3:AW$42) -> 0 | V45: =SUMIF(AX$3:AX$42,$D45,AY$3:AY$42) -> 0 | W45: =SUMIF(AZ$3:AZ$42,$D45,BA$3:BA$42) -> 0
A46: 44 | B46: -3 | C46: 41 | D46: Lukas Körnig | E46: 165.00012 | G46: 0 | I46: 0 | J46: 0 | K46: 0 | L46: 0 | M46: 0 | N46: 0 | O46: 0 | P46: 0 | Q46: 0 | R46: 0 | S46: 40.00012 | T46: 125 | U46: 0 | V46: 0 | W46: 0
A47: 45 | B47: -3 | C47: 42 | D47: Till Fritzsche | E47: 165 | F47: =E47-G47 -> 165 | G47: 0 | H47: 56 | I47: 0 | J47: 0 | K47: 0 | L47: 0 | M47: 0 | N47: 0 | O47: 0 | P47: 0 | Q47: 165 | R47: 0 | S47: 0 | T47: 0 | U47: 0 | V47: 0 | W47: 0
A48: 46 | B48: -2 | C48: 44 | D48: Ronny Zimmermann | E48: 150.00004 | F48: 150.00004 | G48: 0 | I48: 0 | J48: 80 | K48: 0 | L48: 0 | M48: 0 | N48: 0 | O48: 0 | P48: 0 | Q48: 0 | R48: 70.00004 | S48: 0 | T48: 0 | U48: 0 | V48: 0 | W48: 0
A49: 47 | B49: -2 | C49: 45 | D49: Frank Brandmeier | E49: 145.00004 | F49: 145.00004 | G49: 0 | I49: 0 | J49: 0 | K49: 0 | L49: 0 | M49: 0 | N49: 145.00004 | O49: 0 | P49: 0 | Q49: 0 | R49: 0 | S49: 0 | T49: 0 | U49: 0 | V49: 0 | W49: 0
A50: 48 | B50: 12 | C50: 60 | D50: Ronny Rejke | E50: 140.003 | F50: 140.003 | G50: 0 | I50: 40.003 | J50: 0 | K50: 0 | L50: 0 | M50: 0 | N50: 0 | O50: 0 | P50: 0 | Q50: 0 | R50: 0 | S50: 0 | T50: 0 | U50: 100 | V50: 0 | W50: 0
A51: 49 | B51: -3 | C51: 46 | D51: Christian Fröhlich | E51: 130 | F51: 130 | G51: 0 | H51: 93 | I51: 0 | J51: 0 | K51: 0 | L51: 0 | M51: 130 | N51: 0 | O51: 0 | P51: 0 | Q51: 0 | R51: 0 | S51: 0 | T51: 0 | U51: 0 | V51: 0 | W51: 0
A52: 50 | B52: -3 | C52: 47 | D52: Hermann Kraus | E52: 125 | F52: 125 | G52: 0 | H52: 33 | I52: 0 | J52: 0 | K52: 0 | L52: 0 | M52: 0 | N52: 0 | O52: 125 | P52: 0 | Q52: 0 | R52: 0 | S52: 0 | T52: 0 | U52: 0 | V52: 0 | W52: 0
A53: 51 | B53: 6 | C53: 57 | D53: Helmut Kuball | E53: 120 | F53: 120 | G53: 0 | I53: 0 | J53: 0 | K53: 0 | L53: 0 | M53: 0 | N53: 0 | O53: 0 | P53: 0 | Q53: 0 | R53: 0 | S53: 0 | T53: 50 | U53: 70 | V53: 0 | W53: 0
A54: 52 | B54: -4 | C54: 48 | D54: Jörg Bonitz | E54: 115 | F54: 115 | G54: 0 | I54: 0 | J54: 0 | K54: 0 | L54: 0 | M54: 0 | N54: 0 | O54: 0 | P54: 0 | Q54: 60 | R54: 0 | S54: 0 | T54: 55 | U54: 0 | V54: 0 | W54: 0
A55: 53 | B55: -4 | C55: 49 | D55: Slava Nikiforov | E55: 110 | F55: 110 | G55: 0 | I55: 0 | J55: 0 | K55: 0 | L55: 0 | M55: 0 | N55: 0 | O55: 110 | P55: 0 | Q55: 0 | R55: 0 | S55: 0 | T55: 0 | U55: 0 | V55: 0 | W55: 0
A56: 54 | B56: -4 | C56: 50 | D56: Marco Danisch | E56: 100 | F56: 100 | G56: 0 | I56: 0 | J56: 0 | K56: 0 | L56: 0 | M56: 0 | N56: 0 | O56: 100 | P56: 0 | Q56: 0 | R56: 0 | S56: 0 | T56: 0 | U56: 0 | V56: 0 | W56: 0
A57: 55 | B57: 0 | C57: 55 | D57: Peter Stadelmann | E57: 95.00019 | F57: 95.00019 | G57: 0 | I57: 0 | J57: 0 | K57: 0 | L57: 65.00019 | M57: 0 | N57: 0 | O57: 0 | P57: 0 | Q57: 0 | R57: 0 | S57: 0 | T57: 0 | U57: 30 | V57: 0 | W57: 0
A58: 56 | B58: -3 | C58: 53 | D58: Rainer Trupkovic | E58: 70.00007 | F58: 70.00007 | G58: 0 | I58: 0 | J58: 0 | K58: 0 | L58: 0 | M58: 0 | N58: 70.00007 | O58: 0 | P58: 0 | Q58: 0 | R58: 0 | S58: 0 | T58: 0 | U58: 0 | V58: 0 | W58: 0
A59: 57 | B59: -3 | C59: 54 | D59: Cihan Ekiz | E59: 70 | F59: 70 | G59: 0 | I59: 0 | J59: 70 | K59: 0 | L59: 0 | M59: 0 | N59: 0 | O59: 0 | P59: 0 | Q59: 0 | R59: 0 | S59: 0 | T59: 0 | U59: 0 | V59: 0 | W59: 0
A60: 58 | B60: -2 | C60: 56 | D60: Felix Rotsching | E60: 50 | F60: 50 | G60: 0 | I60: 0 | J60: 0 | K60: 0 | L60: 0 | M60: 0 | N60: 0 | O60: 50 | P60: 0 | Q60: 0 | R60: 0 | S60: 0 | T60: 0 | U60: 0 | V60: 0 | W60: 0
A61: 59 | B61: -1 | C61: 58 | D61: Matthias Bauer | E61: 45 | F61: 45 | G61: 0 | I61: 0 | J61: 0 | K61: 0 | L61: 0 | M61: 0 | N61: 0 | O61: 45 | P61: 0 | Q61: 0 | R61: 0 | S61: 0 | T61: 0 | U61: 0 | V61: 0 | W61: 0
A62: 60 | B62: -1 | C62: 59 | D62: Rene Reinhardt | E62: 45 | F62: 45 | G62: 0 | I62: 0 | J62: 0 | K62: 0 | L62: 0 | M62: 45 | N62: 0 | O62: 0 | P62: 0 | Q62: 0 | R62: 0 | S62: 0 | T62: 0 | U62: 0 | V62: 0 | W62: 0
A63: 61 | B63: 0 | C63: 61 | D63: Michael Richter | E63: 40.00004 | F63: 40.00004 | G63: 0 | I63: 0 | J63: 0 | K63: 40.00004 | L63: 0 | M63: 0 | N63: 0 | O63: 0 | P63: 0 | Q63: 0 | R63: 0 | S63: 0 | T63: 0 | U63: 0 | V63: 0 | W63: 0
A64: 62 | B64: 0 | C64: 62 | D64: Frank Hofmann | E64: 40.00003 | F64: 40.00003 | G64: 0 | I64: 0 | J64: 0 | K64: 0 | L64: 0 | M64: 0 | N64: 0 | O64: 0 | P64: 0 | Q64: 0 | R64: 0 | S64: 40.00003 | T64: 0 | U64: 0 | V64: 0 | W64: 0
A65: 63 | B65: 0 | C65: 63 | D65: Andreas Schreier | E65: 40 | F65: 40 | G65: 0 | I65: 0 | J65: 0 | K65: 0 | L65: 0 | M65: 0 | N65: 0 | O65: 40 | P65: 0 | Q65: 0 | R65: 0 | S65: 0 | T65: 0 | U65: 0 | V65: 0 | W65: 0
A66: 64 | B66: 0 | C66: 64 | D66: Carsten Schröter | E66: 40 | F66: 40 | G66: 0 | I66: 0 | J66: 0 | K66: 40 | L66: 0 | M66: 0 | N66: 0 | O66: 0 | P66: 0 | Q66: 0 | R66: 0 | S66: 0 | T66: 0 | U66: 0 | V66: 0 | W66: 0
A67: 65 | B67: =IF(C67="","",C67-A67) -> 0 | C67: 65 | D67: Patrick Schicker | E67: =I67+J67+K67+L67+M67+N67+O67+P67+Q67+R67+S67+T67+U67+V67+W67 -> 40 | F67: 40 | G67: =INDEX(I67:W67,MATCH(LARGE(I67:W67,COUNTIF(I67:W67,">="&0)),I67:W67,0)) -> 0 | I67: =SUMIF($X$3:$X$59,$D67,$Y$3:$Y$59) -> 0 | J67: =SUMIF($Z$3:$Z$42,$D67,$AA$3:$AA$42) -> 0 | K67: =SUMIF($AB$3:$AB$42,$D67,$AC$3:$AC$42) -> 0 | L67: =SUMIF($AD$3:$AD$42,$D67,$AE$3:$AE$42) -> 0 | M67: =SUMIF($AF$3:$AF$42,$D67,$AG$3:$AG$42) -> 0 | N67: =SUMIF($AH$3:$AH$42,$D67,$AI$3:$AI$42) -> 0 | O67: =SUMIF($AJ$3:$AJ$42,$D67,$AK$3:$AK$42) -> 40 | P67: =SUMIF($AL$3:$AL$42,$D67,$AM$3:$AM$42) -> 0 | Q67: =SUMIF(AN$3:AN$42,$D67,AO$3:AO$42) -> 0 | R67: =SUMIF(AP$3:AP$42,$D67,AQ$3:AQ$42) -> 0 | S67: =SUMIF(AR$3:AR$42,$D67,AS$3:AS$42) -> 0 | T67: =SUMIF(AT$3:AT$42,$D67,AU$3:AU$42) -> 0 | U67: =SUMIF(AV$3:AV$42,$D67,AW$3:AW$42) -> 0 | V67: =SUMIF(AX$3:AX$42,$D67,AY$3:AY$42) -> 0 | W67: =SUMIF(AZ$3:AZ$42,$D67,BA$3:BA$42) -> 0
A68: 66 | B68: 0 | C68: 66 | D68: Dominic Schmid | E68: 35.0032 | F68: 35.0032 | G68: 0 | I68: 35.0032 | J68: 0 | K68: 0 | L68: 0 | M68: 0 | N68: 0 | O68: 0 | P68: 0 | Q68: 0 | R68: 0 | S68: 0 | T68: 0 | U68: 0 | V68: 0 | W68: 0
A69: 67 | B69: 0 | C69: 67 | D69: Francesco Cocco | E69: 30.00014 | F69: 30.00014 | G69: 0 | I69: 0 | J69: 0 | K69: 0 | L69: 0 | M69: 0 | N69: 30.00014 | O69: 0 | P69: 0 | Q69: 0 | R69: 0 | S69: 0 | T69: 0 | U69: 0 | V69: 0 | W69: 0
A70: 68 | B70: 0 | C70: 68 | D70: André Osowski | E70: 30 | F70: 30 | G70: 0 | I70: 0 | J70: 0 | K70: 0 | L70: 0 | M70: 0 | N70: 0 | O70: 30 | P70: 0 | Q70: 0 | R70: 0 | S70: 0 | T70: 0 | U70: 0 | V70: 0 | W70: 0
A71: 69 | D71: Jonas Ziemer | E71: 30 | G71: 0 | I71: 0 | J71: 0 | K71: 0 | L71: 0 | M71: 0 | N71: 0 | O71: 0 | P71: 0 | Q71: 0 | R71: 0 | S71: 0 | T71: 0 | U71: 30 | V71: 0 | W71: 0
A72: 70 | B72: -1 | C72: 69 | D72: Ali Kirim | E72: 0 | F72: =E72-G72 -> 0 | G72: 0 | I72: 0 | J72: 0 | K72: 0 | L72: 0 | M72: 0 | N72: 0 | O72: 0 | P72: 0 | Q72: 0 | R72: 0 | S72: 0 | T72: 0 | U72: 0 | V72: 0 | W72: 0
A73: 71 | B73: -1 | C73: 70 | D73: Andre Jung | E73: 0 | F73: 0 | G73: 0 | I73: 0 | J73: 0 | K73: 0 | L73: 0 | M73: 0 | N73: 0 | O73: 0 | P73: 0 | Q73: 0 | R73: 0 | S73: 0 | T73: 0 | U73: 0 | V73: 0 | W73: 0
A74: 72 | B74: -1 | C74: 71 | D74: Andreas Lositza | E74: 0 | F74: 0 | G74: 0 | I74: 0 | J74: 0 | K74: 0 | L74: 0 | M74: 0 | N74: 0 | O74: 0 | P74: 0 | Q74: 0 | R74: 0 | S74: 0 | T74: 0 | U74: 0 | V74: 0 | W74: 0
A75: 73 | B75: -1 | C75: 72 | D75: Andreas Pohl | E75: 0 | F75: 0 | G75: 0 | I75: 0 | J75: 0 | K75: 0 | L75: 0 | M75: 0 | N75: 0 | O75: 0 | P75: 0 | Q75: 0 | R75: 0 | S75: 0 | T75: 0 | U75: 0 | V75: 0 | W75: 0
A76: 74 | B76: -1 | C76: 73 | D76: Björn Rommel | E76: 0 | F76: 0 | G76: 0 | I76: 0 | J76: 0 | K76: 0 | L76: 0 | M76: 0 | N76: 0 | O76: 0 | P76: 0 | Q76: 0 | R76: 0 | S76: 0 | T76: 0 | U76: 0 | V76: 0 | W76: 0
A77: 75 | B77: -1 | C77: 74 | D77: Björn Schumann | E77: 0 | F77: 0 | G77: 0 | I77: 0 | J77: 0 | K77: 0 | L77: 0 | M77: 0 | N77: 0 | O77: 0 | P77: 0 | Q77: 0 | R77: 0 | S77: 0 | T77: 0 | U77: 0 | V77: 0 | W77: 0
A78: 76 | B78: -1 | C78: 75 | D78: Daud Ilyas Ghauri | E78: 0 | F78: 0 | G78: 0 | I78: 0 | J78: 0 | K78: 0 | L78: 0 | M78: 0 | N78: 0 | O78: 0 | P78: 0 | Q78: 0 | R78: 0 | S78: 0 | T78: 0 | U78: 0 | V78: 0 | W78: 0
A79: 77 | B79: -1 | C79: 76 | D79: Florian Tetzner | E79: 0 | F79: 0 | G79: 0 | I79: 0 | J79: 0 | K79: 0 | L79: 0 | M79: 0 | N79: 0 | O79: 0 | P79: 0 | Q79: 0 | R79: 0 | S79: 0 | T79: 0 | U79: 0 | V79: 0 | W79: 0
A80: 78 | B80: -1 | C80: 77 | D80: Frank Hörnig | E80: 0 | F80: 0 | G80: 0 | I80: 0 | J80: 0 | K80: 0 | L80: 0 | M80: 0 | N80: 0 | O80: 0 | P80: 0 | Q80: 0 | R80: 0 | S80: 0 | T80: 0 | U80: 0 | V80: 0 | W80: 0
A81: 79 | B81: -1 | C81: 78 | D81: Frank Müller | E81: 0 | F81: 0 | G81: 0 | I81: 0 | J81: 0 | K81: 0 | L81: 0 | M81: 0 | N81: 0 | O81: 0 | P81: 0 | Q81: 0 | R81: 0 | S81: 0 | T81: 0 | U81: 0 | V81: 0 | W81: 0
A82: 80 | B82: -1 | C82: 79 | D82: Hans Bergmann | E82: 0 | F82: 0 | G82: 0 | I82: 0 | J82: 0 | K82: 0 | L82: 0 | M82: 0 | N82: 0 | O82: 0 | P82: 0 | Q82: 0 | R82: 0 | S82: 0 | T82: 0 | U82: 0 | V82: 0 | W82: 0
A83: 81 | B83: -1 | C83: 80 | D83: Hilmar Habrom | E83: 0 | F83: 0 | G83: 0 | I83: 0 | J83: 0 | K83: 0 | L83: 0 | M83: 0 | N83: 0 | O83: 0 | P83: 0 | Q83: 0 | R83: 0 | S83: 0 | T83: 0 | U83: 0 | V83: 0 | W83: 0
A84: 82 | B84: -1 | C84: 81 | D84: Holger Seifert | E84: 0 | F84: 0 | G84: 0 | I84: 0 | J84: 0 | K84: 0 | L84: 0 | M84: 0 | N84: 0 | O84: 0 | P84: 0 | Q84: 0 | R84: 0 | S84: 0 | T84: 0 | U84: 0 | V84: 0 | W84: 0
A85: 83 | B85: -1 | C85: 82 | D85: Imad Mohamad | E85: 0 | F85: 0 | G85: 0 | I85: 0 | J85: 0 | K85: 0 | L85: 0 | M85: 0 | N85: 0 | O85: 0 | P85: 0 | Q85: 0 | R85: 0 | S85: 0 | T85: 0 | U85: 0 | V85: 0 | W85: 0
A86: 84 | B86: -1 | C86: 83 | D86: Irina Gorbataya | E86: 0 | F86: 0 | G86: 0 | I86: 0 | J86: 0 | K86: 0 | L86: 0 | M86: 0 | N86: 0 | O86: 0 | P86: 0 | Q86: 0 | R86: 0 | S86: 0 | T86: 0 | U86: 0 | V86: 0 | W86: 0
A87: 85 | B87: -1 | C87: 84 | D87: Jens Tzschirner | E87: 0 | F87: 0 | G87: 0 | I87: 0 | J87: 0 | K87: 0 | L87: 0 | M87: 0 | N87: 0 | O87: 0 | P87: 0 | Q87: 0 | R87: 0 | S87: 0 | T87: 0 | U87: 0 | V87: 0 | W87: 0
A88: 86 | B88: -1 | C88: 85 | D88: Lubos Charvat | E88: 0 | F88: 0 | G88: 0 | I88: 0 | J88: 0 | K88: 0 | L88: 0 | M88: 0 | N88: 0 | O88: 0 | P88: 0 | Q88: 0 | R88: 0 | S88: 0 | T88: 0 | U88: 0 | V88: 0 | W88: 0
A89: 87 | B89: -1 | C89: 86 | D89: Mario Ilgen | E89: 0 | F89: 0 | G89: 0 | I89: 0 | J89: 0 | K89: 0 | L89: 0 | M89: 0 | N89: 0 | O89: 0 | P89: 0 | Q89: 0 | R89: 0 | S89: 0 | T89: 0 | U89: 0 | V89: 0 | W89: 0
A90: 88 | B90: -1 | C90: 87 | D90: Michael Haferung | E90: 0 | F90: 0 | G90: 0 | I90: 0 | J90: 0 | K90: 0 | L90: 0 | M90: 0 | N90: 0 | O90: 0 | P90: 0 | Q90: 0 | R90: 0 | S90: 0 | T90: 0 | U90: 0 | V90: 0 | W90: 0
A91: 89 | B91: -1 | C91: 88 | D91: Michael Simon | E91: 0 | F91: 0 | G91: 0 | I91: 0 | J91: 0 | K91: 0 | L91: 0 | M91: 0 | N91: 0 | O91: 0 | P91: 0 | Q91: 0 | R91: 0 | S91: 0 | T91: 0 | U91: 0 | V91: 0 | W91: 0
A92: 90 | B92: -1 | C92: 89 | D92: Mohanad Alobidi | E92: 0 | F92: 0 | G92: 0 | I92: 0 | J92: 0 | K92: 0 | L92: 0 | M92: 0 | N92: 0 | O92: 0 | P92: 0 | Q92: 0 | R92: 0 | S92: 0 | T92: 0 | U92: 0 | V92: 0 | W92: 0
A93: 91 | B93: -1 | C93: 90 | D93: Örbi Ermdorfer | E93: 0 | F93: 0 | G93: 0 | I93: 0 | J93: 0 | K93: 0 | L93: 0 | M93: 0 | N93: 0 | O93: 0 | P93: 0 | Q93: 0 | R93: 0 | S93: 0 | T93: 0 | U93: 0 | V93: 0 | W93: 0
A94: 92 | B94: -1 | C94: 91 | D94: Pragadeeshwaran Ratheesh | E94: 0 | F94: 0 | G94: 0 | I94: 0 | J94: 0 | K94: 0 | L94: 0 | M94: 0 | N94: 0 | O94: 0 | P94: 0 | Q94: 0 | R94: 0 | S94: 0 | T94: 0 | U94: 0 | V94: 0 | W94: 0
A95: 93 | B95: -1 | C95: 92 | D95: Rainer Krämer | E95: 0 | F95: 0 | G95: 0 | I95: 0 | J95: 0 | K95: 0 | L95: 0 | M95: 0 | N95: 0 | O95: 0 | P95: 0 | Q95: 0 | R95: 0 | S95: 0 | T95: 0 | U95: 0 | V95: 0 | W95: 0
A96: 94 | B96: -1 | C96: 93 | D96: Rico Krumbiegel | E96: 0 | F96: 0 | G96: 0 | I96: 0 | J96: 0 | K96: 0 | L96: 0 | M96: 0 | N96: 0 | O96: 0 | P96: 0 | Q96: 0 | R96: 0 | S96: 0 | T96: 0 | U96: 0 | V96: 0 | W96: 0
A97: 95 | B97: -1 | C97: 94 | D97: Robert Ochmann | E97: 0 | F97: 0 | G97: 0 | I97: 0 | J97: 0 | K97: 0 | L97: 0 | M97: 0 | N97: 0 | O97: 0 | P97: 0 | Q97: 0 | R97: 0 | S97: 0 | T97: 0 | U97: 0 | V97: 0 | W97: 0
A98: 96 | B98: -1 | C98: 95 | D98: Shuo Yang | E98: 0 | F98: 0 | G98: 0 | I98: 0 | J98: 0 | K98: 0 | L98: 0 | M98: 0 | N98: 0 | O98: 0 | P98: 0 | Q98: 0 | R98: 0 | S98: 0 | T98: 0 | U98: 0 | V98: 0 | W98: 0
A99: 97 | B99: -1 | C99: 96 | D99: Steffen Eilenstein | E99: =I99+J99+K99+L99+M99+N99+O99+P99+Q99+R99+S99+T99+U99+V99+W99 -> 0 | F99: 0 | G99: =INDEX(I99:W99,MATCH(LARGE(I99:W99,COUNTIF(I99:W99,">="&0)),I99:W99,0)) -> 0 | I99: =SUMIF($X$3:$X$59,$D99,$Y$3:$Y$59) -> 0 | J99: =SUMIF($Z$3:$Z$42,$D99,$AA$3:$AA$42) -> 0 | K99: =SUMIF($AB$3:$AB$42,$D99,$AC$3:$AC$42) -> 0 | L99: =SUMIF($AD$3:$AD$42,$D99,$AE$3:$AE$42) -> 0 | M99: =SUMIF($AF$3:$AF$42,$D99,$AG$3:$AG$42) -> 0 | N99: =SUMIF($AH$3:$AH$42,$D99,$AI$3:$AI$42) -> 0 | O99: =SUMIF($AJ$3:$AJ$42,$D99,$AK$3:$AK$42) -> 0 | P99: =SUMIF($AL$3:$AL$42,$D99,$AM$3:$AM$42) -> 0 | Q99: =SUMIF(AN$3:AN$42,$D99,AO$3:AO$42) -> 0 | R99: =SUMIF(AP$3:AP$42,$D99,AQ$3:AQ$42) -> 0 | S99: =SUMIF(AR$3:AR$42,$D99,AS$3:AS$42) -> 0 | T99: =SUMIF(AT$3:AT$42,$D99,AU$3:AU$42) -> 0 | U99: =SUMIF(AV$3:AV$42,$D99,AW$3:AW$42) -> 0 | V99: =SUMIF(AX$3:AX$42,$D99,AY$3:AY$42) -> 0 | W99: =SUMIF(AZ$3:AZ$42,$D99,BA$3:BA$42) -> 0
A100: 98 | B100: -1 | C100: 97 | D100: Steffen Meußler | E100: 0 | F100: 0 | G100: 0 | I100: 0 | J100: 0 | K100: 0 | L100: 0 | M100: 0 | N100: 0 | O100: 0 | P100: 0 | Q100: 0 | R100: 0 | S100: 0 | T100: 0 | U100: 0 | V100: 0 | W100: 0
A101: 99 | B101: -1 | C101: 98 | D101: Thomas Garbe | E101: 0 | F101: 0 | G101: 0 | I101: 0 | J101: 0 | K101: 0 | L101: 0 | M101: 0 | N101: 0 | O101: 0 | P101: 0 | Q101: 0 | R101: 0 | S101: 0 | T101: 0 | U101: 0 | V101: 0 | W101: 0
A102: 100 | B102: -1 | C102: 99 | D102: Thomas Kämpfer | E102: 0 | F102: 0 | G102: 0 | I102: 0 | J102: 0 | K102: 0 | L102: 0 | M102: 0 | N102: 0 | O102: 0 | P102: 0 | Q102: 0 | R102: 0 | S102: 0 | T102: 0 | U102: 0 | V102: 0 | W102: 0
A103: 101 | B103: -1 | C103: 100 | D103: Thomas Matka | E103: 0 | F103: 0 | G103: 0 | I103: 0 | J103: 0 | K103: 0 | L103: 0 | M103: 0 | N103: 0 | O103: 0 | P103: 0 | Q103: 0 | R103: 0 | S103: 0 | T103: 0 | U103: 0 | V103: 0 | W103: 0
A104: 102 | C104: 101 | D104: Thomas Schnabl | E104: 0 | F104: 0 | G104: 0 | I104: 0 | J104: 0 | K104: 0 | L104: 0 | M104: 0 | N104: 0 | O104: 0 | P104: 0 | Q104: 0 | R104: 0 | S104: 0 | T104: 0 | U104: 0 | V104: 0 | W104: 0
A105: 103 | C105: 102 | D105: Timo Veit | E105: 0 | F105: 0 | G105: 0 | I105: 0 | J105: 0 | K105: 0 | L105: 0 | M105: 0 | N105: 0 | O105: 0 | P105: 0 | Q105: 0 | R105: 0 | S105: 0 | T105: 0 | U105: 0 | V105: 0 | W105: 0
C106: 103 | D106: Ulrike Wilfer | E106: 0 | F106: 0 | G106: 0 | I106: 0 | J106: 0 | K106: 0 | L106: 0 | M106: 0 | N106: 0 | O106: 0 | P106: 0 | Q106: 0 | R106: 0 | S106: 0 | T106: 0 | U106: 0 | V106: 0 | W106: 0
E107: 0 | G107: 0 | I107: 0 | J107: 0 | K107: 0 | L107: 0 | M107: 0 | N107: 0 | O107: 0 | P107: 0 | Q107: 0 | R107: 0 | S107: 0 | T107: 0 | U107: 0 | V107: 0 | W107: 0
E108: 0 | G108: 0 | I108: 0 | J108: 0 | K108: 0 | L108: 0 | M108: 0 | N108: 0 | O108: 0 | P108: 0 | Q108: 0 | R108: 0 | S108: 0 | T108: 0 | U108: 0 | V108: 0 | W108: 0
E109: 0 | G109: 0 | I109: 0 | J109: 0 | K109: 0 | L109: 0 | M109: 0 | N109: 0 | O109: 0 | P109: 0 | Q109: 0 | R109: 0 | S109: 0 | T109: 0 | U109: 0 | V109: 0 | W109: 0
E110: 0 | G110: 0 | I110: 0 | J110: 0 | K110: 0 | L110: 0 | M110: 0 | N110: 0 | O110: 0 | P110: 0 | Q110: 0 | R110: 0 | S110: 0 | T110: 0 | U110: 0 | V110: 0 | W110: 0
E111: 0 | G111: 0 | I111: 0 | J111: 0 | K111: 0 | L111: 0 | M111: 0 | N111: 0 | O111: 0 | P111: 0 | Q111: 0 | R111: 0 | S111: 0 | T111: 0 | U111: 0 | V111: 0 | W111: 0
E112: 0 | G112: 0 | I112: 0 | J112: 0 | K112: 0 | L112: 0 | M112: 0 | N112: 0 | O112: 0 | P112: 0 | Q112: 0 | R112: 0 | S112: 0 | T112: 0 | U112: 0 | V112: 0 | W112: 0
E113: 0 | G113: 0 | I113: 0 | J113: 0 | K113: 0 | L113: 0 | M113: 0 | N113: 0 | O113: 0 | P113: 0 | Q113: 0 | R113: 0 | S113: 0 | T113: 0 | U113: 0 | V113: 0 | W113: 0
E114: 0 | G114: 0 | I114: 0 | J114: 0 | K114: 0 | L114: 0 | M114: 0 | N114: 0 | O114: 0 | P114: 0 | Q114: 0 | R114: 0 | S114: 0 | T114: 0 | U114: 0 | V114: 0 | W114: 0
E115: 0 | G115: 0 | I115: 0 | J115: 0 | K115: 0 | L115: 0 | M115: 0 | N115: 0 | O115: 0 | P115: 0 | Q115: 0 | R115: 0 | S115: 0 | T115: 0 | U115: 0 | V115: 0 | W115: 0
E116: 0 | G116: 0 | I116: 0 | J116: 0 | K116: 0 | L116: 0 | M116: 0 | N116: 0 | O116: 0 | P116: 0 | Q116: 0 | R116: 0 | S116: 0 | T116: 0 | U116: 0 | V116: 0 | W116: 0
E117: 0 | G117: 0 | I117: 0 | J117: 0 | K117: 0 | L117: 0 | M117: 0 | N117: 0 | O117: 0 | P117: 0 | Q117: 0 | R117: 0 | S117: 0 | T117: 0 | U117: 0 | V117: 0 | W117: 0
E118: 0 | G118: 0 | I118: 0 | J118: 0 | K118: 0 | L118: 0 | M118: 0 | N118: 0 | O118: 0 | P118: 0 | Q118: 0 | R118: 0 | S118: 0 | T118: 0 | U118: 0 | V118: 0 | W118: 0
E119: 0 | G119: 0 | I119: 0 | J119: 0 | K119: 0 | L119: 0 | M119: 0 | N119: 0 | O119: 0 | P119: 0 | Q119: 0 | R119: 0 | S119: 0 | T119: 0 | U119: 0 | V119: 0 | W119: 0
E120: 0 | G120: 0 | I120: 0 | J120: 0 | K120: 0 | L120: 0 | M120: 0 | N120: 0 | O120: 0 | P120: 0 | Q120: 0 | R120: 0 | S120: 0 | T120: 0 | U120: 0 | V120: 0 | W120: 0
E121: 0 | G121: 0 | I121: 0 | J121: 0 | K121: 0 | L121: 0 | M121: 0 | N121: 0 | O121: 0 | P121: 0 | Q121: 0 | R121: 0 | S121: 0 | T121: 0 | U121: 0 | V121: 0 | W121: 0
E122: 0 | G122: 0 | I122: 0 | J122: 0 | K122: 0 | L122: 0 | M122: 0 | N122: 0 | O122: 0 | P122: 0 | Q122: 0 | R122: 0 | S122: 0 | T122: 0 | U122: 0 | V122: 0 | W122: 0
E123: 0 | G123: 0 | I123: 0 | J123: 0 | K123: 0 | L123: 0 | M123: 0 | N123: 0 | O123: 0 | P123: 0 | Q123: 0 | R123: 0 | S123: 0 | T123: 0 | U123: 0 | V123: 0 | W123: 0
E124: 0 | G124: 0 | I124: 0 | J124: 0 | K124: 0 | L124: 0 | M124: 0 | N124: 0 | O124: 0 | P124: 0 | Q124: 0 | R124: 0 | S124: 0 | T124: 0 | U124: 0 | V124: 0 | W124: 0
E125: 0 | G125: 0 | I125: 0 | J125: 0 | K125: 0 | L125: 0 | M125: 0 | N125: 0 | O125: 0 | P125: 0 | Q125: 0 | R125: 0 | S125: 0 | T125: 0 | U125: 0 | V125: 0 | W125: 0
E126: 0 | G126: 0 | I126: 0 | J126: 0 | K126: 0 | L126: 0 | M126: 0 | N126: 0 | O126: 0 | P126: 0 | Q126: 0 | R126: 0 | S126: 0 | T126: 0 | U126: 0 | V126: 0 | W126: 0
E127: 0 | G127: 0 | I127: 0 | J127: 0 | K127: 0 | L127: 0 | M127: 0 | N127: 0 | O127: 0 | P127: 0 | Q127: 0 | R127: 0 | S127: 0 | T127: 0 | U127: 0 | V127: 0 | W127: 0
E128: 0 | G128: 0 | I128: 0 | J128: 0 | K128: 0 | L128: 0 | M128: 0 | N128: 0 | O128: 0 | P128: 0 | Q128: 0 | R128: 0 | S128: 0 | T128: 0 | U128: 0 | V128: 0 | W128: 0
E129: 0 | G129: 0 | I129: 0 | J129: 0 | K129: 0 | L129: 0 | M129: 0 | N129: 0 | O129: 0 | P129: 0 | Q129: 0 | R129: 0 | S129: 0 | T129: 0 | U129: 0 | V129: 0 | W129: 0
E130: 0 | G130: 0 | I130: 0 | J130: 0 | K130: 0 | L130: 0 | M130: 0 | N130: 0 | O130: 0 | P130: 0 | Q130: 0 | R130: 0 | S130: 0 | T130: 0 | U130: 0 | V130: 0 | W130: 0
E131: =I131+J131+K131+L131+M131+N131+O131+P131+Q131+R131+S131+T131+U131+V131+W131 -> 0 | G131: =INDEX(I131:W131,MATCH(LARGE(I131:W131,COUNTIF(I131:W131,">="&0)),I131:W131,0)) -> 0 | I131: =SUMIF($X$3:$X$59,$D131,$Y$3:$Y$59) -> 0 | J131: =SUMIF($Z$3:$Z$42,$D131,$AA$3:$AA$42) -> 0 | K131: =SUMIF($AB$3:$AB$42,$D131,$AC$3:$AC$42) -> 0 | L131: =SUMIF($AD$3:$AD$42,$D131,$AE$3:$AE$42) -> 0 | M131: =SUMIF($AF$3:$AF$42,$D131,$AG$3:$AG$42) -> 0 | N131: =SUMIF($AH$3:$AH$42,$D131,$AI$3:$AI$42) -> 0 | O131: =SUMIF($AJ$3:$AJ$42,$D131,$AK$3:$AK$42) -> 0 | P131: =SUMIF($AL$3:$AL$42,$D131,$AM$3:$AM$42) -> 0 | Q131: =SUMIF(AN$3:AN$42,$D131,AO$3:AO$42) -> 0 | R131: =SUMIF(AP$3:AP$42,$D131,AQ$3:AQ$42) -> 0 | S131: =SUMIF(AR$3:AR$42,$D131,AS$3:AS$42) -> 0 | T131: =SUMIF(AT$3:AT$42,$D131,AU$3:AU$42) -> 0 | U131: =SUMIF(AV$3:AV$42,$D131,AW$3:AW$42) -> 0 | V131: =SUMIF(AX$3:AX$42,$D131,AY$3:AY$42) -> 0 | W131: =SUMIF(AZ$3:AZ$42,$D131,BA$3:BA$42) -> 0
E132: 0 | G132: 0 | I132: 0 | J132: 0 | K132: 0 | L132: 0 | M132: 0 | N132: 0 | O132: 0 | P132: 0 | Q132: 0 | R132: 0 | S132: 0 | T132: 0 | U132: 0 | V132: 0 | W132: 0
E133: 0 | G133: 0 | I133: 0 | J133: 0 | K133: 0 | L133: 0 | M133: 0 | N133: 0 | O133: 0 | P133: 0 | Q133: 0 | R133: 0 | S133: 0 | T133: 0 | U133: 0 | V133: 0 | W133: 0
E134: 0 | G134: 0 | I134: 0 | J134: 0 | K134: 0 | L134: 0 | M134: 0 | N134: 0 | O134: 0 | P134: 0 | Q134: 0 | R134: 0 | S134: 0 | T134: 0 | U134: 0 | V134: 0 | W134: 0
E135: 0 | G135: 0 | I135: 0 | J135: 0 | K135: 0 | L135: 0 | M135: 0 | N135: 0 | O135: 0 | P135: 0 | Q135: 0 | R135: 0 | S135: 0 | T135: 0 | U135: 0 | V135: 0 | W135: 0
E136: 0 | G136: 0 | I136: 0 | J136: 0 | K136: 0 | L136: 0 | M136: 0 | N136: 0 | O136: 0 | P136: 0 | Q136: 0 | R136: 0 | S136: 0 | T136: 0 | U136: 0 | V136: 0 | W136: 0
E137: 0 | G137: 0 | I137: 0 | J137: 0 | K137: 0 | L137: 0 | M137: 0 | N137: 0 | O137: 0 | P137: 0 | Q137: 0 | R137: 0 | S137: 0 | T137: 0 | U137: 0 | V137: 0 | W137: 0
E138: 0 | G138: 0 | I138: 0 | J138: 0 | K138: 0 | L138: 0 | M138: 0 | N138: 0 | O138: 0 | P138: 0 | Q138: 0 | R138: 0 | S138: 0 | T138: 0 | U138: 0 | V138: 0 | W138: 0
E139: 0 | G139: 0 | I139: 0 | J139: 0 | K139: 0 | L139: 0 | M139: 0 | N139: 0 | O139: 0 | P139: 0 | Q139: 0 | R139: 0 | S139: 0 | T139: 0 | U139: 0 | V139: 0 | W139: 0
E140: 0 | G140: 0 | I140: 0 | J140: 0 | K140: 0 | L140: 0 | M140: 0 | N140: 0 | O140: 0 | P140: 0 | Q140: 0 | R140: 0 | S140: 0 | T140: 0 | U140: 0 | V140: 0 | W140: 0
E141: 0 | G141: 0 | I141: 0 | J141: 0 | K141: 0 | L141: 0 | M141: 0 | N141: 0 | O141: 0 | P141: 0 | Q141: 0 | R141: 0 | S141: 0 | T141: 0 | U141: 0 | V141: 0 | W141: 0
E142: 0 | G142: 0 | I142: 0 | J142: 0 | K142: 0 | L142: 0 | M142: 0 | N142: 0 | O142: 0 | P142: 0 | Q142: 0 | R142: 0 | S142: 0 | T142: 0 | U142: 0 | V142: 0 | W142: 0
E143: 0 | G143: 0 | I143: 0 | J143: 0 | K143: 0 | L143: 0 | M143: 0 | N143: 0 | O143: 0 | P143: 0 | Q143: 0 | R143: 0 | S143: 0 | T143: 0 | U143: 0 | V143: 0 | W143: 0
E144: 0 | G144: 0 | I144: 0 | J144: 0 | K144: 0 | L144: 0 | M144: 0 | N144: 0 | O144: 0 | P144: 0 | Q144: 0 | R144: 0 | S144: 0 | T144: 0 | U144: 0 | V144: 0 | W144: 0
E145: 0 | G145: 0 | I145: 0 | J145: 0 | K145: 0 | L145: 0 | M145: 0 | N145: 0 | O145: 0 | P145: 0 | Q145: 0 | R145: 0 | S145: 0 | T145: 0 | U145: 0 | V145: 0 | W145: 0
E146: 0 | G146: 0 | I146: 0 | J146: 0 | K146: 0 | L146: 0 | M146: 0 | N146: 0 | O146: 0 | P146: 0 | Q146: 0 | R146: 0 | S146: 0 | T146: 0 | U146: 0 | V146: 0 | W146: 0
E147: 0 | G147: 0 | I147: 0 | J147: 0 | K147: 0 | L147: 0 | M147: 0 | N147: 0 | O147: 0 | P147: 0 | Q147: 0 | R147: 0 | S147: 0 | T147: 0 | U147: 0 | V147: 0 | W147: 0
E148: 0 | G148: 0 | I148: 0 | J148: 0 | K148: 0 | L148: 0 | M148: 0 | N148: 0 | O148: 0 | P148: 0 | Q148: 0 | R148: 0 | S148: 0 | T148: 0 | U148: 0 | V148: 0 | W148: 0
E149: 0 | G149: 0 | I149: 0 | J149: 0 | K149: 0 | L149: 0 | M149: 0 | N149: 0 | O149: 0 | P149: 0 | Q149: 0 | R149: 0 | S149: 0 | T149: 0 | U149: 0 | V149: 0 | W149: 0
E150: 0 | G150: 0 | I150: 0 | J150: 0 | K150: 0 | L150: 0 | M150: 0 | N150: 0 | O150: 0 | P150: 0 | Q150: 0 | R150: 0 | S150: 0 | T150: 0 | U150: 0 | V150: 0 | W150: 0
E151: 0 | G151: 0 | I151: 0 | J151: 0 | K151: 0 | L151: 0 | M151: 0 | N151: 0 | O151: 0 | P151: 0 | Q151: 0 | R151: 0 | S151: 0 | T151: 0 | U151: 0 | V151: 0 | W151: 0
E152: 0 | G152: 0 | I152: 0 | J152: 0 | K152: 0 | L152: 0 | M152: 0 | N152: 0 | O152: 0 | P152: 0 | Q152: 0 | R152: 0 | S152: 0 | T152: 0 | U152: 0 | V152: 0 | W152: 0
E153: 0 | G153: 0 | I153: 0 | J153: 0 | K153: 0 | L153: 0 | M153: 0 | N153: 0 | O153: 0 | P153: 0 | Q153: 0 | R153: 0 | S153: 0 | T153: 0 | U153: 0 | V153: 0 | W153: 0
E154: 0 | G154: 0 | I154: 0 | J154: 0 | K154: 0 | L154: 0 | M154: 0 | N154: 0 | O154: 0 | P154: 0 | Q154: 0 | R154: 0 | S154: 0 | T154: 0 | U154: 0 | V154: 0 | W154: 0
E155: 0 | G155: 0 | I155: 0 | J155: 0 | K155: 0 | L155: 0 | M155: 0 | N155: 0 | O155: 0 | P155: 0 | Q155: 0 | R155: 0 | S155: 0 | T155: 0 | U155: 0 | V155: 0 | W155: 0
E156: 0 | G156: 0 | I156: 0 | J156: 0 | K156: 0 | L156: 0 | M156: 0 | N156: 0 | O156: 0 | P156: 0 | Q156: 0 | R156: 0 | S156: 0 | T156: 0 | U156: 0 | V156: 0 | W156: 0
E157: 0 | G157: 0 | I157: 0 | J157: 0 | K157: 0 | L157: 0 | M157: 0 | N157: 0 | O157: 0 | P157: 0 | Q157: 0 | R157: 0 | S157: 0 | T157: 0 | U157: 0 | V157: 0 | W157: 0
E158: 0 | G158: 0 | I158: 0 | J158: 0 | K158: 0 | L158: 0 | M158: 0 | N158: 0 | O158: 0 | P158: 0 | Q158: 0 | R158: 0 | S158: 0 | T158: 0 | U158: 0 | V158: 0 | W158: 0
E159: 0 | G159: 0 | I159: 0 | J159: 0 | K159: 0 | L159: 0 | M159: 0 | N159: 0 | O159: 0 | P159: 0 | Q159: 0 | R159: 0 | S159: 0 | T159: 0 | U159: 0 | V159: 0 | W159: 0
E160: 0 | G160: 0 | I160: 0 | J160: 0 | K160: 0 | L160: 0 | M160: 0 | N160: 0 | O160: 0 | P160: 0 | Q160: 0 | R160: 0 | S160: 0 | T160: 0 | U160: 0 | V160: 0 | W160: 0
E161: 0 | G161: 0 | I161: 0 | J161: 0 | K161: 0 | L161: 0 | M161: 0 | N161: 0 | O161: 0 | P161: 0 | Q161: 0 | R161: 0 | S161: 0 | T161: 0 | U161: 0 | V161: 0 | W161: 0
E162: 0 | G162: 0 | I162: 0 | J162: 0 | K162: 0 | L162: 0 | M162: 0 | N162: 0 | O162: 0 | P162: 0 | Q162: 0 | R162: 0 | S162: 0 | T162: 0 | U162: 0 | V162: 0 | W162: 0
E163: =I163+J163+K163+L163+M163+N163+O163+P163+Q163+R163+S163+T163+U163+V163+W163 -> 0 | G163: =INDEX(I163:W163,MATCH(LARGE(I163:W163,COUNTIF(I163:W163,">="&0)),I163:W163,0)) -> 0 | I163: =SUMIF($X$3:$X$59,$D163,$Y$3:$Y$59) -> 0 | J163: =SUMIF($Z$3:$Z$42,$D163,$AA$3:$AA$42) -> 0 | K163: =SUMIF($AB$3:$AB$42,$D163,$AC$3:$AC$42) -> 0 | L163: =SUMIF($AD$3:$AD$42,$D163,$AE$3:$AE$42) -> 0 | M163: =SUMIF($AF$3:$AF$42,$D163,$AG$3:$AG$42) -> 0 | N163: =SUMIF($AH$3:$AH$42,$D163,$AI$3:$AI$42) -> 0 | O163: =SUMIF($AJ$3:$AJ$42,$D163,$AK$3:$AK$42) -> 0 | P163: =SUMIF($AL$3:$AL$42,$D163,$AM$3:$AM$42) -> 0 | Q163: =SUMIF(AN$3:AN$42,$D163,AO$3:AO$42) -> 0 | R163: =SUMIF(AP$3:AP$42,$D163,AQ$3:AQ$42) -> 0 | S163: =SUMIF(AR$3:AR$42,$D163,AS$3:AS$42) -> 0 | T163: =SUMIF(AT$3:AT$42,$D163,AU$3:AU$42) -> 0 | U163: =SUMIF(AV$3:AV$42,$D163,AW$3:AW$42) -> 0 | V163: =SUMIF(AX$3:AX$42,$D163,AY$3:AY$42) -> 0 | W163: =SUMIF(AZ$3:AZ$42,$D163,BA$3:BA$42) -> 0
E164: 0 | G164: 0 | I164: 0 | J164: 0 | K164: 0 | L164: 0 | M164: 0 | N164: 0 | O164: 0 | P164: 0 | Q164: 0 | R164: 0 | S164: 0 | T164: 0 | U164: 0 | V164: 0 | W164: 0
E165: 0 | G165: 0 | I165: 0 | J165: 0 | K165: 0 | L165: 0 | M165: 0 | N165: 0 | O165: 0 | P165: 0 | Q165: 0 | R165: 0 | S165: 0 | T165: 0 | U165: 0 | V165: 0 | W165: 0
E166: 0 | G166: 0 | I166: 0 | J166: 0 | K166: 0 | L166: 0 | M166: 0 | N166: 0 | O166: 0 | P166: 0 | Q166: 0 | R166: 0 | S166: 0 | T166: 0 | U166: 0 | V166: 0 | W166: 0
E167: 0 | G167: 0 | I167: 0 | J167: 0 | K167: 0 | L167: 0 | M167: 0 | N167: 0 | O167: 0 | P167: 0 | Q167: 0 | R167: 0 | S167: 0 | T167: 0 | U167: 0 | V167: 0 | W167: 0
E168: 0 | G168: 0 | I168: 0 | J168: 0 | K168: 0 | L168: 0 | M168: 0 | N168: 0 | O168: 0 | P168: 0 | Q168: 0 | R168: 0 | S168: 0 | T168: 0 | U168: 0 | V168: 0 | W168: 0
E169: 0 | G169: 0 | I169: 0 | J169: 0 | K169: 0 | L169: 0 | M169: 0 | N169: 0 | O169: 0 | P169: 0 | Q169: 0 | R169: 0 | S169: 0 | T169: 0 | U169: 0 | V169: 0 | W169: 0
E170: 0 | G170: 0 | I170: 0 | J170: 0 | K170: 0 | L170: 0 | M170: 0 | N170: 0 | O170: 0 | P170: 0 | Q170: 0 | R170: 0 | S170: 0 | T170: 0 | U170: 0 | V170: 0 | W170: 0
E171: 0 | G171: 0 | I171: 0 | J171: 0 | K171: 0 | L171: 0 | M171: 0 | N171: 0 | O171: 0 | P171: 0 | Q171: 0 | R171: 0 | S171: 0 | T171: 0 | U171: 0 | V171: 0 | W171: 0
E172: 0 | G172: 0 | I172: 0 | J172: 0 | K172: 0 | L172: 0 | M172: 0 | N172: 0 | O172: 0 | P172: 0 | Q172: 0 | R172: 0 | S172: 0 | T172: 0 | U172: 0 | V172: 0 | W172: 0
E173: 0 | G173: 0 | I173: 0 | J173: 0 | K173: 0 | L173: 0 | M173: 0 | N173: 0 | O173: 0 | P173: 0 | Q173: 0 | R173: 0 | S173: 0 | T173: 0 | U173: 0 | V173: 0 | W173: 0
E174: 0 | G174: 0 | I174: 0 | J174: 0 | K174: 0 | L174: 0 | M174: 0 | N174: 0 | O174: 0 | P174: 0 | Q174: 0 | R174: 0 | S174: 0 | T174: 0 | U174: 0 | V174: 0 | W174: 0
E175: 0 | G175: 0 | I175: 0 | J175: 0 | K175: 0 | L175: 0 | M175: 0 | N175: 0 | O175: 0 | P175: 0 | Q175: 0 | R175: 0 | S175: 0 | T175: 0 | U175: 0 | V175: 0 | W175: 0
E176: 0 | G176: 0 | I176: 0 | J176: 0 | K176: 0 | L176: 0 | M176: 0 | N176: 0 | O176: 0 | P176: 0 | Q176: 0 | R176: 0 | S176: 0 | T176: 0 | U176: 0 | V176: 0 | W176: 0
E177: 0 | G177: 0 | I177: 0 | J177: 0 | K177: 0 | L177: 0 | M177: 0 | N177: 0 | O177: 0 | P177: 0 | Q177: 0 | R177: 0 | S177: 0 | T177: 0 | U177: 0 | V177: 0 | W177: 0
E178: 0 | G178: 0 | I178: 0 | J178: 0 | K178: 0 | L178: 0 | M178: 0 | N178: 0 | O178: 0 | P178: 0 | Q178: 0 | R178: 0 | S178: 0 | T178: 0 | U178: 0 | V178: 0 | W178: 0
E179: 0 | G179: 0 | I179: 0 | J179: 0 | K179: 0 | L179: 0 | M179: 0 | N179: 0 | O179: 0 | P179: 0 | Q179: 0 | R179: 0 | S179: 0 | T179: 0 | U179: 0 | V179: 0 | W179: 0
E180: 0 | G180: 0 | I180: 0 | J180: 0 | K180: 0 | L180: 0 | M180: 0 | N180: 0 | O180: 0 | P180: 0 | Q180: 0 | R180: 0 | S180: 0 | T180: 0 | U180: 0 | V180: 0 | W180: 0
E181: 0 | G181: 0 | I181: 0 | J181: 0 | K181: 0 | L181: 0 | M181: 0 | N181: 0 | O181: 0 | P181: 0 | Q181: 0 | R181: 0 | S181: 0 | T181: 0 | U181: 0 | V181: 0 | W181: 0
E182: 0 | G182: 0 | I182: 0 | J182: 0 | K182: 0 | L182: 0 | M182: 0 | N182: 0 | O182: 0 | P182: 0 | Q182: 0 | R182: 0 | S182: 0 | T182: 0 | U182: 0 | V182: 0 | W182: 0
E183: 0 | G183: 0 | I183: 0 | J183: 0 | K183: 0 | L183: 0 | M183: 0 | N183: 0 | O183: 0 | P183: 0 | Q183: 0 | R183: 0 | S183: 0 | T183: 0 | U183: 0 | V183: 0 | W183: 0
E184: 0 | G184: 0 | I184: 0 | J184: 0 | K184: 0 | L184: 0 | M184: 0 | N184: 0 | O184: 0 | P184: 0 | Q184: 0 | R184: 0 | S184: 0 | T184: 0 | U184: 0 | V184: 0 | W184: 0
E185: 0 | G185: 0 | I185: 0 | J185: 0 | K185: 0 | L185: 0 | M185: 0 | N185: 0 | O185: 0 | P185: 0 | Q185: 0 | R185: 0 | S185: 0 | T185: 0 | U185: 0 | V185: 0 | W185: 0
E186: 0 | G186: 0 | I186: 0 | J186: 0 | K186: 0 | L186: 0 | M186: 0 | N186: 0 | O186: 0 | P186: 0 | Q186: 0 | R186: 0 | S186: 0 | T186: 0 | U186: 0 | V186: 0 | W186: 0
E187: 0 | G187: 0 | I187: 0 | J187: 0 | K187: 0 | L187: 0 | M187: 0 | N187: 0 | O187: 0 | P187: 0 | Q187: 0 | R187: 0 | S187: 0 | T187: 0 | U187: 0 | V187: 0 | W187: 0
E188: 0 | G188: 0 | I188: 0 | J188: 0 | K188: 0 | L188: 0 | M188: 0 | N188: 0 | O188: 0 | P188: 0 | Q188: 0 | R188: 0 | S188: 0 | T188: 0 | U188: 0 | V188: 0 | W188: 0
E189: 0 | G189: 0 | I189: 0 | J189: 0 | K189: 0 | L189: 0 | M189: 0 | N189: 0 | O189: 0 | P189: 0 | Q189: 0 | R189: 0 | S189: 0 | T189: 0 | U189: 0 | V189: 0 | W189: 0
E190: 0 | G190: 0 | I190: 0 | J190: 0 | K190: 0 | L190: 0 | M190: 0 | N190: 0 | O190: 0 | P190: 0 | Q190: 0 | R190: 0 | S190: 0 | T190: 0 | U190: 0 | V190: 0 | W190: 0
E191: 0 | G191: 0 | I191: 0 | J191: 0 | K191: 0 | L191: 0 | M191: 0 | N191: 0 | O191: 0 | P191: 0 | Q191: 0 | R191: 0 | S191: 0 | T191: 0 | U191: 0 | V191: 0 | W191: 0
E192: 0 | G192: 0 | I192: 0 | J192: 0 | K192: 0 | L192: 0 | M192: 0 | N192: 0 | O192: 0 | P192: 0 | Q192: 0 | R192: 0 | S192: 0 | T192: 0 | U192: 0 | V192: 0 | W192: 0
E193: 0 | G193: 0 | I193: 0 | J193: 0 | K193: 0 | L193: 0 | M193: 0 | N193: 0 | O193: 0 | P193: 0 | Q193: 0 | R193: 0 | S193: 0 | T193: 0 | U193: 0 | V193: 0 | W193: 0
E194: 0 | G194: 0 | I194: 0 | J194: 0 | K194: 0 | L194: 0 | M194: 0 | N194: 0 | O194: 0 | P194: 0 | Q194: 0 | R194: 0 | S194: 0 | T194: 0 | U194: 0 | V194: 0 | W194: 0
E195: =I195+J195+K195+L195+M195+N195+O195+P195+Q195+R195+S195+T195+U195+V195+W195 -> 0 | G195: =INDEX(I195:W195,MATCH(LARGE(I195:W195,COUNTIF(I195:W195,">="&0)),I195:W195,0)) -> 0 | I195: =SUMIF($X$3:$X$59,$D195,$Y$3:$Y$59) -> 0 | J195: =SUMIF($Z$3:$Z$42,$D195,$AA$3:$AA$42) -> 0 | K195: =SUMIF($AB$3:$AB$42,$D195,$AC$3:$AC$42) -> 0 | L195: =SUMIF($AD$3:$AD$42,$D195,$AE$3:$AE$42) -> 0 | M195: =SUMIF($AF$3:$AF$42,$D195,$AG$3:$AG$42) -> 0 | N195: =SUMIF($AH$3:$AH$42,$D195,$AI$3:$AI$42) -> 0 | O195: =SUMIF($AJ$3:$AJ$42,$D195,$AK$3:$AK$42) -> 0 | P195: =SUMIF($AL$3:$AL$42,$D195,$AM$3:$AM$42) -> 0 | Q195: =SUMIF(AN$3:AN$42,$D195,AO$3:AO$42) -> 0 | R195: =SUMIF(AP$3:AP$42,$D195,AQ$3:AQ$42) -> 0 | S195: =SUMIF(AR$3:AR$42,$D195,AS$3:AS$42) -> 0 | T195: =SUMIF(AT$3:AT$42,$D195,AU$3:AU$42) -> 0 | U195: =SUMIF(AV$3:AV$42,$D195,AW$3:AW$42) -> 0 | V195: =SUMIF(AX$3:AX$42,$D195,AY$3:AY$42) -> 0 | W195: =SUMIF(AZ$3:AZ$42,$D195,BA$3:BA$42) -> 0
E196: 0 | G196: 0 | I196: 0 | J196: 0 | K196: 0 | L196: 0 | M196: 0 | N196: 0 | O196: 0 | P196: 0 | Q196: 0 | R196: 0 | S196: 0 | T196: 0 | U196: 0 | V196: 0 | W196: 0
E197: 0 | G197: 0 | I197: 0 | J197: 0 | K197: 0 | L197: 0 | M197: 0 | N197: 0 | O197: 0 | P197: 0 | Q197: 0 | R197: 0 | S197: 0 | T197: 0 | U197: 0 | V197: 0 | W197: 0
E198: 0 | G198: 0 | I198: 0 | J198: 0 | K198: 0 | L198: 0 | M198: 0 | N198: 0 | O198: 0 | P198: 0 | Q198: 0 | R198: 0 | S198: 0 | T198: 0 | U198: 0 | V198: 0 | W198: 0
E199: 0 | G199: 0 | I199: 0 | J199: 0 | K199: 0 | L199: 0 | M199: 0 | N199: 0 | O199: 0 | P199: 0 | Q199: 0 | R199: 0 | S199: 0 | T199: 0 | U199: 0 | V199: 0 | W199: 0
E200: 0 | G200: 0 | I200: 0 | J200: 0 | K200: 0 | L200: 0 | M200: 0 | N200: 0 | O200: 0 | P200: 0 | Q200: 0 | R200: 0 | S200: 0 | T200: 0 | U200: 0 | V200: 0 | W200: 0
... 1 more rows
